fUSD/lending_fUSD_20250622
["ID","MTS","AMOUNT","RATE_DAILY","PERIOD"]
[366941724,1750593046162,-725.32,0.00020315,2]
[366941726,1750593046171,-168.0,0.00020337,2]
[366941728,1750593046181,-300.0,0.0002034,2]
[366941730,1750593046190,-300.0,0.0002034,2]
[366941732,1750593046199,-174.89852217,0.00020376,2]
[366941733,1750593046208,-3232.74560579,0.00020398,2]
[366941735,1750593046218,-341.77,0.0002041,2]
[366941737,1750593046227,-150.0,0.0002041,2]
[366941739,1750593046237,-150.0,0.0002041,2]
[366941742,1750593046247,-150.0,0.0002041,2]
[366941743,1750593046256,-154.753994,0.0002041,2]
[366941746,1750593046266,-154.753986,0.0002041,2]
[366941748,1750593046276,-151.0,0.0002041,2]
[366941750,1750593046285,-2917.932075,0.00020479,5]
[366941752,1750593046294,-1000.0,0.000205,2]
[366941754,1750593046304,-1077.84132249,0.00020508,2]
[366941756,1750593046313,-1103.53919897,0.00020508,2]
[366941757,1750593046322,-1686.18726205,0.00020508,2]
[366941759,1750593046333,-151.0,0.00020521,2]
[366941761,1750593046342,-160.917405,0.00020521,2]
[366941763,1750593046351,-160.917405,0.00020521,2]
[366941765,1750593046361,-168.0,0.00020528,2]
[366941768,1750593046370,-992.64246944,0.00020572,2]
[366941770,1750593046383,-500.0,0.00020634,5]
[366941772,1750593046393,-500.0,0.00020635,5]
[366941774,1750593046402,-2917.932075,0.00020641,2]
[366941776,1750593046411,-151.0,0.00020641,2]
[366941778,1750593046421,-151.0,0.00020641,2]
[366941780,1750593046430,-151.0,0.00020641,2]
[366941782,1750593046440,-151.0,0.00020641,2]
[366941784,1750593046448,-151.0,0.00020641,2]
[366941786,1750593046458,-151.0,0.00020641,2]
[366941787,1750593046467,-151.0,0.00020641,2]
[366941790,1750593046476,-151.0,0.00020641,2]
[366941792,1750593046486,-151.0,0.00020641,2]
[366941793,1750593046495,-151.300273,0.00020641,2]
[366941795,1750593046504,-151.633051,0.00020641,2]
[366941797,1750593046514,-151.0,0.00020641,2]
[366941799,1750593046524,-151.0,0.00020641,2]
[366941802,1750593046533,-151.0,0.00020641,2]
[366941803,1750593046543,-151.66978,0.00020641,2]
[366941805,1750593046552,-151.0,0.00020641,2]
[366941807,1750593046561,-151.0,0.00020641,2]
[366941810,1750593046571,-219.837411,0.00020641,2]
[366941812,1750593046580,-1095.54176085,0.00020668,2]
[366941814,1750593046592,-1500.0,0.00020668,2]
[366941815,1750593046601,-1500.0,0.00020668,2]
[366941818,1750593046611,-1500.0,0.00020668,2]
[366941820,1750593046620,-1500.0,0.00020668,2]
[366941822,1750593046630,-1002.39111331,0.00020668,2]
[366941823,1750593046640,-1500.0,0.00020668,2]
[366941827,1750593046649,-151.0,0.00020742,2]
[366941829,1750593046660,-151.834044,0.00020742,2]
[366941831,1750593046669,-151.0,0.00020742,2]
[366941833,1750593046679,-160.917405,0.00020742,2]
[366941835,1750593046688,-160.917407,0.00020742,2]
[366941837,1750593046697,-151.0,0.00020762,2]
[366941840,1750593046706,-151.0,0.00020762,2]
[366941844,1750593046715,-151.0,0.00020762,2]
[366941847,1750593046725,-151.0,0.00020762,2]
[366941849,1750593046734,-151.0,0.00020762,2]
[366941851,1750593046744,-151.0,0.00020762,2]
[366941853,1750593046754,-232.86,0.00020857,2]
[366941855,1750593046763,-151.0,0.0002087,2]
[366941857,1750593046772,-151.0,0.0002087,2]
[366941858,1750593046781,-223.740726,0.00020887,2]
[366941860,1750593046791,-223.740726,0.00020887,2]
[366941861,1750593046800,-151.0,0.00020887,2]
[366941862,1750593046809,-151.0,0.00020887,2]
[366941863,1750593046818,-151.0,0.00020887,2]
[366941864,1750593046828,-151.0,0.00020887,2]
[366941865,1750593046837,-1007.9143,0.00020887,2]
[366941866,1750593046846,-2000.0,0.00020887,2]
[366941867,1750593046855,-2000.0,0.00020887,2]
[366941868,1750593046865,-387.0,0.000209,2]
[366941869,1750593046874,-151.0,0.000209,2]
[366941870,1750593046883,-500.0,0.000209,2]
[366941871,1750593046893,-500.0,0.000209,2]
[366941872,1750593046902,-500.0,0.000209,2]
[366941873,1750593046912,-500.0,0.000209,2]
[366941874,1750593046921,-500.0,0.000209,2]
[366941875,1750593046930,-500.0,0.000209,2]
[366941877,1750593046940,-500.0,0.000209,2]
[366941879,1750593046949,-500.0,0.000209,2]
[366941881,1750593046959,-500.0,0.000209,2]
[366941883,1750593046968,-500.0,0.000209,2]
[366941885,1750593046977,-500.0,0.000209,2]
[366941887,1750593046986,-500.0,0.000209,2]
[366941889,1750593046995,-500.0,0.000209,2]
[366941891,1750593047005,-500.0,0.000209,2]
[366941893,1750593047014,-500.0,0.000209,2]
[366941895,1750593047024,-500.0,0.000209,2]
[366941897,1750593047033,-500.0,0.000209,2]
[366941899,1750593047043,-500.0,0.000209,2]
[366941901,1750593047053,-500.0,0.000209,2]
[366941903,1750593047062,-500.0,0.000209,2]
[366941905,1750593047072,-500.0,0.000209,2]
[366941907,1750593047082,-515.0,0.000209,2]
[366941909,1750593047093,-500.0,0.000209,2]
[366941911,1750593047103,-500.0,0.000209,2]
[366941913,1750593047113,-557.0,0.000209,2]
[366941915,1750593047123,-500.0,0.000209,2]
[366941917,1750593047133,-500.0,0.000209,2]
[366941919,1750593047143,-500.0,0.000209,2]
[366941921,1750593047153,-500.0,0.000209,2]
[366941923,1750593047163,-500.0,0.000209,2]
[366941925,1750593047173,-515.0,0.000209,2]
[366941927,1750593047183,-500.0,0.000209,2]
[366941929,1750593047193,-500.0,0.000209,2]
[366941931,1750593047203,-500.0,0.000209,2]
[366941933,1750593047213,-500.0,0.000209,2]
[366941935,1750593047223,-500.0,0.000209,2]
[366941937,1750593047234,-502.0,0.000209,2]
[366941939,1750593047244,-500.0,0.000209,2]
[366941942,1750593047254,-500.0,0.000209,2]
[366941944,1750593047264,-500.0,0.000209,2]
[366941946,1750593047274,-500.0,0.000209,2]
[366941948,1750593047284,-3000.0,0.000209,7]
[366941950,1750593047294,-500.0,0.000209,2]
[366941952,1750593047303,-500.0,0.000209,2]
[366941953,1750593047313,-500.0,0.000209,2]
[366941956,1750593047323,-500.0,0.000209,2]
[366941957,1750593047332,-500.0,0.000209,2]
[366941959,1750593047342,-500.0,0.000209,2]
[366941962,1750593047352,-500.0,0.000209,2]
[366941964,1750593047362,-505.0,0.000209,2]
[366941966,1750593047371,-500.0,0.000209,2]
[366941967,1750593047381,-500.0,0.000209,2]
[366941969,1750593047391,-500.0,0.000209,2]
[366941972,1750593047401,-500.0,0.000209,2]
[366941974,1750593047410,-500.0,0.000209,2]
[366941975,1750593047420,-500.0,0.000209,2]
[366941977,1750593047430,-500.0,0.000209,2]
[366941979,1750593047439,-500.0,0.000209,2]
[366941981,1750593047449,-500.0,0.000209,2]
[366941983,1750593047459,-500.0,0.000209,2]
[366941985,1750593047468,-500.0,0.000209,2]
[366941987,1750593047478,-500.0,0.000209,2]
[366941989,1750593047488,-500.0,0.000209,2]
[366941991,1750593047498,-500.0,0.000209,2]
[366941993,1750593047508,-500.0,0.000209,2]
[366941995,1750593047518,-500.0,0.000209,2]
[366941997,1750593047527,-500.0,0.000209,2]
[366941999,1750593047536,-500.0,0.000209,2]
[366942001,1750593047546,-500.0,0.000209,2]
[366942004,1750593047556,-500.0,0.000209,2]
[366942006,1750593047565,-500.0,0.000209,2]
[366942008,1750593047575,-500.0,0.000209,2]
[366942010,1750593047587,-500.0,0.000209,2]
[366942012,1750593047597,-500.0,0.000209,2]
[366942014,1750593047606,-500.0,0.000209,2]
[366942016,1750593047615,-500.0,0.000209,2]
[366942018,1750593047624,-500.0,0.000209,2]
[366942020,1750593047635,-150.0,0.000209,2]
[366942022,1750593047645,-300.0,0.00020927,2]
[366942024,1750593047656,-165.92,0.00020949,2]
[366942026,1750593047667,-151.0,0.00020951,2]
[366942028,1750593047678,-151.0,0.00020951,2]
[366942029,1750593047689,-151.0,0.00020951,2]
[366942031,1750593047698,-151.611835,0.00020951,2]
[366942033,1750593047708,-151.0,0.00020951,2]
[366942035,1750593047717,-151.0,0.00020951,2]
[366942037,1750593047727,-151.0,0.00020951,2]
[366942039,1750593047737,-151.0,0.00020951,2]
[366942041,1750593047747,-151.0,0.00020951,2]
[366942043,1750593047756,-151.0,0.00020951,2]
[366942045,1750593047765,-501.973561,0.00020951,2]
[366942047,1750593047775,-501.973561,0.00020951,2]
[366942049,1750593047784,-151.0,0.00020951,2]
[366942051,1750593047794,-500.0,0.00020951,2]
[366942053,1750593047803,-500.0,0.00020951,2]
[366942055,1750593047813,-500.0,0.00020951,2]
[366942057,1750593047822,-500.0,0.00020951,2]
[366942059,1750593047832,-500.0,0.00020951,2]
[366942061,1750593047841,-500.0,0.00020951,2]
[366942063,1750593047851,-500.0,0.00020951,2]
[366942065,1750593047860,-500.0,0.00020951,2]
[366942067,1750593047869,-500.0,0.00020951,2]
[366942069,1750593047879,-2917.932075,0.00020958,5]
[366942071,1750593047888,-151.0,0.00020958,2]
[366942073,1750593047897,-3232.74560579,0.00020964,2]
[366942075,1750593047907,-178.32,0.00020986,2]
[366942077,1750593047917,-233.0,0.0002099,2]
[366942079,1750593047926,-8256.45446368,0.00020992,2]
[366942081,1750593047935,-2053649.30297223,0.00020992,3]
[366942267,1750593049730,-151.0,0.00019368,2]
[366942269,1750593049742,-151.0,0.00019479,2]
[366942272,1750593049754,-9483.6823149,0.00020992,3]
[366942274,1750593049766,-1051.43326114,0.00020992,3]
[366942539,1750593052413,-151.0,0.00019368,2]
[366942541,1750593052422,-151.0,0.00019479,2]
[366942543,1750593052431,-151.0,0.0001948,2]
[366942545,1750593052440,-151.0,0.0001948,2]
[366942547,1750593052450,-151.0,0.00019573,2]
[366942549,1750593052459,-151.0,0.00019573,2]
[366942551,1750593052467,-555.2767841,0.0001958,2]
[366942565,1750593052591,-41.7232159,0.0001958,2]
[366942567,1750593052600,-151.0,0.0001958,2]
[366942568,1750593052608,-151.0,0.0001958,2]
[366942571,1750593052619,-151.0,0.00019796,2]
[366942573,1750593052630,-151.0,0.000198,2]
[366942575,1750593052641,-151.0,0.00019947,2]
[366942577,1750593052650,-151.0,0.0001998,2]
[366942579,1750593052661,-10955.2061741,0.00020992,3]
[366942581,1750593052672,-13296.034788,0.00020992,3]
[366942583,1750593052683,-2252.85721065,0.00020992,3]
[366942585,1750593052694,-3803.05539998,0.00020992,3]
[366942972,1750593071834,200.0,0.0001739,2]
[366942998,1750593804152,176.64,0.00013699,2]
[366943039,1750594232432,-168.0,0.00018145,2]
[366943040,1750594232442,-201.0,0.0001815,2]
[366943041,1750594232452,-247.0,0.0001815,2]
[366943042,1750594232462,-168.0,0.00018599,2]
[366943043,1750594232471,-200.0,0.00018817,2]
[366943044,1750594232481,-200.0,0.00018918,7]
[366943045,1750594232490,-311.76,0.00018959,2]
[366943046,1750594232500,-333.3,0.00019022,2]
[366943047,1750594232510,-1000.0,0.00019052,2]
[366943048,1750594232519,-250.0,0.00019073,2]
[366943049,1750594232530,-1957.856,0.00019167,2]
[366943050,1750594232539,-207.4,0.00019167,2]
[366943051,1750594232549,-666.0,0.00019178,2]
[366943052,1750594232559,-1200.0,0.00019196,2]
[366943053,1750594232569,-2030.296672,0.00019222,2]
[366943054,1750594232579,-529.55,0.00019239,2]
[366943055,1750594232588,-529.55,0.00019244,2]
[366943056,1750594232597,-187.78006525,0.00019245,2]
[366943057,1750594232606,-151.0,0.00019245,2]
[366943058,1750594232616,-266.39880271,0.00019245,2]
[366943059,1750594232625,-529.55,0.00019249,2]
[366943060,1750594232634,-529.55,0.00019254,2]
[366943061,1750594232644,-529.55,0.00019259,2]
[366943062,1750594232653,-529.55,0.00019265,2]
[366943063,1750594232663,-366.4605,0.00019268,2]
[366943064,1750594232672,-529.55,0.0001927,2]
[366943065,1750594232681,-529.55,0.00019275,2]
[366943066,1750594232691,-2105.41764886,0.00019277,2]
[366943067,1750594232700,-529.55,0.0001928,2]
[366943068,1750594232710,-529.55,0.00019285,2]
[366943069,1750594232719,-529.55,0.0001929,2]
[366943070,1750594232729,-529.55,0.00019295,2]
[366943072,1750594232738,-529.55,0.000193,2]
[366943074,1750594232747,-529.55,0.00019305,2]
[366943076,1750594232756,-529.55,0.0001931,2]
[366943078,1750594232765,-529.55,0.00019315,2]
[366943080,1750594232774,-529.55,0.0001932,2]
[366943081,1750594232784,-529.55,0.00019325,2]
[366943083,1750594232793,-529.55,0.0001933,2]
[366943085,1750594232803,-2183.31810187,0.00019332,2]
[366943088,1750594232812,-529.55,0.00019335,2]
[366943089,1750594232822,-1161.0,0.00019349,2]
[366943091,1750594232831,-7135.0,0.00019349,2]
[366943094,1750594232840,-4096.0,0.00019349,2]
[366943095,1750594232850,-151.0,0.00019367,2]
[366943098,1750594232859,-151.760227,0.00019367,2]
[366943100,1750594232869,-151.0,0.00019367,2]
[366943102,1750594232878,-257.301835,0.00019367,2]
[366943104,1750594232887,-257.301835,0.00019367,2]
[366943106,1750594232898,-451.776205,0.00019367,2]
[366943108,1750594232908,-451.776205,0.00019367,2]
[366943110,1750594232920,-151.0,0.00019368,2]
[366943111,1750594232929,-151.0,0.00019368,2]
[366943114,1750594232939,-257.301835,0.00019368,2]
[366943116,1750594232948,-257.301835,0.00019368,2]
[366943118,1750594232959,-451.776205,0.00019368,2]
[366943120,1750594232968,-451.776205,0.00019368,2]
[366943121,1750594232977,-2264.10087164,0.00019387,2]
[366943124,1750594232987,-500.0,0.00019421,2]
[366943125,1750594232997,-2347.87260389,0.00019442,2]
[366943127,1750594233007,-201.0,0.00019458,3]
[366943129,1750594233016,-166.59,0.00019476,2]
[366943132,1750594233026,-151.0,0.00019479,2]
[366943134,1750594233036,-151.0,0.00019479,2]
[366943135,1750594233045,-257.301835,0.00019479,2]
[366943136,1750594233055,-257.301835,0.00019479,2]
[366943137,1750594233064,-451.776205,0.00019479,2]
[366943138,1750594233074,-451.776205,0.00019479,2]
[366943139,1750594233084,-151.0,0.0001948,2]
[366943140,1750594233094,-151.0,0.0001948,2]
[366943141,1750594233104,-257.301835,0.0001948,2]
[366943142,1750594233113,-257.301835,0.0001948,2]
[366943143,1750594233123,-451.776205,0.0001948,2]
[366943144,1750594233133,-451.776205,0.0001948,2]
[366943145,1750594233143,-2361.72367984,0.00019497,2]
[366943155,1750594238330,-156.0,0.00019349,2]
[366943156,1750594238340,-205.81455873,0.00019497,2]
[366943157,1750594238349,-168.0,0.00019502,2]
[366943158,1750594238361,-8.07661715,0.00019573,2]
[366943225,1750594240364,-142.92338285,0.00019573,2]
[366943226,1750594240373,-151.0,0.00019573,2]
[366943227,1750594240383,-257.301835,0.00019573,2]
[366943228,1750594240392,-257.301835,0.00019573,2]
[366943229,1750594240402,-451.776205,0.00019573,2]
[366943230,1750594240411,-451.776205,0.00019573,2]
[366943231,1750594240422,-152.09,0.00019579,2]
[366943232,1750594240431,-151.0,0.0001958,2]
[366943233,1750594240440,-154.589018,0.0001958,2]
[366943234,1750594240449,-257.301835,0.0001958,2]
[366943235,1750594240459,-257.301835,0.0001958,2]
[366943236,1750594240468,-451.776205,0.0001958,2]
[366943237,1750594240478,-451.776205,0.0001958,2]
[366943238,1750594240487,-151.0,0.00019796,2]
[366943239,1750594240496,-257.301835,0.00019796,2]
[366943240,1750594240506,-257.301835,0.00019796,2]
[366943241,1750594240515,-451.776205,0.00019796,2]
[366943242,1750594240525,-451.776205,0.00019796,2]
[366943243,1750594240534,-151.0,0.00019803,2]
[366943244,1750594240544,-257.301835,0.00019803,2]
[366943245,1750594240553,-257.301835,0.00019803,2]
[366943246,1750594240562,-451.776205,0.00019803,2]
[366943247,1750594240571,-451.776205,0.00019803,2]
[366943248,1750594240580,-287.547,0.00019897,2]
[366943249,1750594240589,-193.827698,0.00019963,2]
[366943250,1750594240599,-257.301835,0.00019963,2]
[366943251,1750594240608,-257.301835,0.00019963,2]
[366943252,1750594240617,-451.776205,0.00019963,2]
[366943253,1750594240626,-451.776205,0.00019963,2]
[366943254,1750594240635,-257.301835,0.0001998,2]
[366943255,1750594240645,-257.301841,0.0001998,2]
[366943256,1750594240656,-451.776205,0.0001998,2]
[366943257,1750594240665,-451.776196,0.0001998,2]
[366943258,1750594240674,-946.0,0.00019982,2]
[366943259,1750594240683,-3336.0,0.00019982,2]
[366943260,1750594240694,-638.0,0.00019982,2]
[366943261,1750594240705,-803.0,0.00019982,2]
[366943262,1750594240716,-559.0,0.00019982,2]
[366943263,1750594240726,-1304.268,0.00019982,2]
[366943264,1750594240735,-591.0,0.00019982,2]
[366943265,1750594240745,-2005.0,0.00019982,2]
[366943266,1750594240755,-349.81842415,0.00019982,2]
[366943267,1750594240794,-502.72739949,0.00019982,2]
[366943268,1750594240805,-75.45417636,0.00019982,2]
[366943269,1750594240815,-529.64350188,0.00019982,2]
[366943270,1750594240827,-1146.35649812,0.00019982,2]
[366943271,1750594240837,-3482.23461474,0.0002,4]
[366943276,1750594243496,-200.0,0.0001815,2]
[366943277,1750594243506,-500.0,0.00019937,2]
[366943288,1750594246675,-385.0,0.00019937,2]
[366943290,1750594246686,-691.70404442,0.0002,4]
[366943292,1750594246730,-250.85374042,0.0002,4]
[366943293,1750594246754,-684.64800033,0.0002,4]
[366943313,1750594626000,500.0,0.00017456,2]
[366943314,1750594635917,500.0,0.00017456,2]
[366943323,1750594887488,175.76,0.00013699,2]
[366943339,1750595155641,5594.54055879,0.0001625,2]
[366943340,1750595155662,9516.86924784,0.0001625,2]
[366943370,1750595404418,483.13075216,0.000143,5]
[366943371,1750595404442,5077.86924784,0.000143,5]
[366943372,1750595411881,201.0,0.00016765,2]
[366943375,1750595431399,-300.0,0.00017908,2]
[366943376,1750595431409,-80.19251542,0.00018051,5]
[366943377,1750595431670,-419.80748458,0.00018051,5]
[366943378,1750595431680,-201.0,0.00018117,3]
[366943379,1750595431689,-151.0,0.0001813,2]
[366943380,1750595431698,-151.0,0.00018131,2]
[366943381,1750595431707,-221.0,0.000185,2]
[366943382,1750595431716,-232.9,0.00018889,2]
[366943383,1750595431726,-65.91251542,0.00018971,2]
[366943403,1750595439613,-1036.50748458,0.00018971,2]
[366943404,1750595439622,-163.49251542,0.00019187,2]
[366943405,1750595440092,466.0,0.00024658,120]
[366943406,1750595440131,-4.50748458,0.00019187,2]
[366943407,1750595440141,-200.0,0.00019256,7]
[366943408,1750595440150,-597.0,0.00019285,2]
[366943409,1750595440159,-1000.0,0.0001929,2]
[366943410,1750595440168,-166.65,0.0001929,2]
[366943411,1750595440178,-162.19579884,0.000193,2]
[366943412,1750595440188,-1200.0,0.00019332,2]
[366943413,1750595440197,-16264.12419607,0.00019333,2]
[366943414,1750595440206,-455.61,0.00019342,2]
[366943415,1750595440216,-150.0,0.00019342,2]
[366943416,1750595440225,-170.97,0.00019342,2]
[366943417,1750595440234,-150.0,0.00019342,2]
[366943418,1750595440245,-150.0,0.00019342,2]
[366943419,1750595440255,-171.34,0.00019342,2]
[366943420,1750595440267,-150.0,0.00019342,2]
[366943421,1750595440276,-170.97,0.00019342,2]
[366943422,1750595440286,-150.0,0.00019342,2]
[366943423,1750595440299,-150.0,0.00019342,2]
[366943424,1750595440309,-170.97,0.00019342,2]
[366943425,1750595440318,-151.49,0.0001939,2]
[366943426,1750595440327,-5270.09593805,0.000194,2]
[366943437,1750595443127,-500.0,0.00019399,2]
[366943440,1750595443137,-500.0,0.00019399,2]
[366943443,1750595443146,-500.0,0.00019399,2]
[366943446,1750595443156,-500.0,0.00019399,2]
[366943449,1750595443165,-500.0,0.00019399,2]
[366943453,1750595443174,-500.0,0.00019399,2]
[366943455,1750595443184,-500.0,0.00019399,2]
[366943457,1750595443194,-374.33145533,0.00019399,2]
[366943459,1750595443203,-500.0,0.00019399,2]
[366943461,1750595443212,-500.0,0.00019399,2]
[366943463,1750595443221,-593.47738946,0.00019399,2]
[366943465,1750595443231,-93.46820166,0.00019399,2]
[366943469,1750595443261,-217.46888928,0.00019399,2]
[366943471,1750595443270,-500.0,0.00019399,2]
[366943473,1750595443280,-190.83701874,0.00019399,2]
[366943475,1750595443291,-606.52534475,0.00019399,2]
[366943476,1750595443301,-335.62680212,0.00019399,2]
[366943477,1750595443311,-500.0,0.00019399,2]
[366943479,1750595443320,-5170.50965296,0.000194,2]
[366943480,1750595443331,-13128.40432306,0.000194,2]
[366943842,1750595471581,201.0,0.00016765,2]
[366943868,1750595881095,508.0,0.00024657,120]
[366943875,1750596068454,6980.394311,7.945e-05,2]
[366943877,1750596086217,209.43,0.00013699,2]
[366943880,1750596157021,405.673126,0.0001738,2]
[366943886,1750596254544,250.0,0.00015,2]
[366943895,1750596329341,160.91736073,0.00019479,30]
[366943896,1750596329603,160.91736073,0.00019616,30]
[366943897,1750596329894,160.91736073,0.00019753,30]
[366943898,1750596329984,160.91736073,0.00019918,30]
[366943899,1750596330102,160.91736073,0.00020055,30]
[366943900,1750596330218,160.91736073,0.00020192,30]
[366943901,1750596330352,160.91736073,0.00020329,30]
[366943908,1750596372154,184.74,0.00014374,2]
[366943916,1750596492009,201.0,0.00016468,2]
[366943963,1750596631887,-250.0,0.00017676,2]
[366943964,1750596631896,-151.0,0.00017865,2]
[366943965,1750596631906,-151.0,0.00017868,2]
[366943966,1750596631917,-201.0,0.00017872,3]
[366943967,1750596631927,-151.0,0.00017873,2]
[366943968,1750596631936,-151.0,0.00017875,2]
[366943969,1750596631946,-151.0,0.00017878,2]
[366943970,1750596631956,-151.0,0.00017884,2]
[366943971,1750596631966,-151.0,0.00017888,2]
[366943972,1750596631975,-717.74772072,0.00017999,2]
[366943973,1750596631990,-234.38227928,0.00017999,2]
[366943974,1750596632000,-106.17068373,0.00018,2]
[366943975,1750596632011,-93.82931627,0.00018,2]
[366943976,1750596632021,-300.0,0.00018047,2]
[366943977,1750596632030,-1200.0,0.00018047,2]
[366943978,1750596632039,-300.0,0.00018048,2]
[366943979,1750596632051,-300.0,0.00018048,2]
[366943980,1750596632061,-12166.52,0.00018049,2]
[366943981,1750596632070,-1000.0,0.00018053,2]
[366943983,1750596632080,-166.12,0.00018091,2]
[366943985,1750596632089,-514.48,0.00018224,2]
[366943987,1750596632099,-168.0,0.00018328,2]
[366943989,1750596632108,-168.0,0.00018415,2]
[366943990,1750596632118,-1200.0,0.000185,6]
[366943991,1750596632128,-341.73,0.00018578,2]
[366943993,1750596632137,-150.0,0.00018578,2]
[366943995,1750596632147,-2400.0,0.000186,6]
[366943997,1750596632156,-349.0,0.00018602,2]
[366943999,1750596632165,-3700.0,0.000187,6]
[366944001,1750596632175,-170.97,0.00018778,2]
[366944003,1750596632184,-150.0,0.00018778,2]
[366944005,1750596632193,-455.61,0.00018778,2]
[366944007,1750596632203,-150.0,0.00018778,2]
[366944009,1750596632213,-150.0,0.00018778,2]
[366944011,1750596632222,-300.0,0.00018778,2]
[366944013,1750596632231,-151.0,0.00018789,2]
[366944015,1750596632241,-1957.856,0.00018789,2]
[366944017,1750596632251,-160.25902763,0.00018789,2]
[366944019,1750596632261,-207.4,0.00018789,2]
[366944021,1750596632271,-168.0,0.00018794,2]
[366944023,1750596632280,-325.0,0.00018799,2]
[366944025,1750596632290,-4900.0,0.000188,6]
[366944028,1750596632300,-505.14922978,0.00018808,2]
[366944030,1750596632309,-2030.296672,0.00018844,2]
[366944032,1750596632319,-168.0,0.00018873,2]
[366944033,1750596632328,-2105.41764886,0.00018899,2]
[366944034,1750596632337,-5114.8025088,0.000189,6]
[366944035,1750596632361,-1085.1974912,0.000189,6]
[366944036,1750596632370,-180.77,0.000189,2]
[366944037,1750596632380,-5563.0,0.000189,5]
[366944038,1750596632389,-2183.31810187,0.00018954,2]
[366944039,1750596632398,-168.0,0.00018995,2]
[366944040,1750596632408,-1001.0,0.00019,3]
[366944041,1750596632417,-2432.705199,0.00019,2]
[366944042,1750596632426,-1001.18001726,0.00019,4]
[366944043,1750596632436,-2264.10087164,0.00019009,2]
[366944044,1750596632445,-168.0,0.00019048,2]
[366944045,1750596632454,-1744.87367794,0.00019064,2]
[366944046,1750596632463,-170.97,0.00019078,2]
[366944047,1750596632472,-710.06,0.00019078,2]
[366944048,1750596632481,-150.0,0.00019078,2]
[366944049,1750596632490,-152.48179838,0.000191,2]
[366944050,1750596632504,-6530.15125598,0.000191,2]
[366944052,1750596632513,-223.80424554,0.00019173,2]
[366944054,1750596632522,-501.44999098,0.00019173,2]
[366944055,1750596632532,-666.0,0.00019178,2]
[366944056,1750596632541,-151.48,0.0001919,2]
[366944057,1750596632550,-151.48,0.0001919,2]
[366944058,1750596632560,-151.48,0.0001919,2]
[366944059,1750596632569,-151.48,0.0001919,2]
[366944060,1750596632578,-155.16420962,0.0001919,2]
[366944062,1750596632587,-1294.8074,0.00019191,2]
[366944063,1750596632596,-2055.39492807,0.00019191,2]
[366944067,1750596637613,-151.0,0.00017861,2]
[366944068,1750596637623,-599.67180968,0.00019191,2]
[366944069,1750596637684,-25342.76216225,0.00019191,2]
[366944070,1750596637693,-300.0,0.00019199,2]
[366944071,1750596637703,-2962.81960009,0.000192,4]
[366944072,1750596637712,-1000.0,0.000192,2]
[366944073,1750596637722,-250.0,0.00019214,2]
[366944074,1750596637731,-2500.0,0.00019214,2]
[366944075,1750596637740,-250.0,0.00019214,2]
[366944095,1750596638019,-201.0,0.00019276,5]